[Event "Titled Tuesday Blitz November 15 Late 2022"]
[White "Alekseenko, Kirill"]
[Black "Zhigalko, Sergei"]
[WhiteFideId "4135539"]
[BlackFideId "13502956"]
[WhiteElo "2682"]
[BlackElo "2662"]
[Result "1-0"]
[Round "05"]
[TimeControl "180+1"]
[Date "2022.11.15"]
[WhiteClock "0:00:36"]
[BlackClock "0:00:06"]

1. e4 {[%clk 0:02:57]}  c5 {[%clk 0:02:56]} 2. Nf3 {[%clk 0:02:57]}  Nc6 {[%clk 0:02:56]} 3. Bb5 {[%clk 0:02:56]}  Nf6 {[%clk 0:02:56]} 4. Bxc6 {[%clk 0:02:54]}  dxc6 {[%clk 0:02:56]} 5. d3 {[%clk 0:02:55]}  Bg4 {[%clk 0:02:56]} 6. h3 {[%clk 0:02:51]}  Bh5 {[%clk 0:02:56]} 7. Nc3 {[%clk 0:02:47]}  Qc7 {[%clk 0:02:56]} 8. Be3 {[%clk 0:02:44]}  e6 {[%clk 0:02:50]} 9. Qe2 {[%clk 0:02:25]}  Nd7 {[%clk 0:02:45]} 10. O-O-O {[%clk 0:02:23]}  Bd6 {[%clk 0:02:26]} 11. g4 {[%clk 0:02:18]}  Bg6 {[%clk 0:02:26]} 12. Nh4 {[%clk 0:02:16]}  O-O-O {[%clk 0:02:26]} 13. f3 {[%clk 0:02:13]}  f6 {[%clk 0:02:20]} 14. Qf2 {[%clk 0:02:08]}  Bf7 {[%clk 0:02:15]} 15. f4 {[%clk 0:02:07]}  e5 {[%clk 0:02:14]} 16. Nf5 {[%clk 0:02:02]}  exf4 {[%clk 0:02:03]} 17. Nxd6+ {[%clk 0:02:02]}  Qxd6 {[%clk 0:02:04]} 18. Bxf4 {[%clk 0:02:03]}  Ne5 {[%clk 0:02:04]} 19. Kb1 {[%clk 0:01:58]}  h6 {[%clk 0:02:00]} 20. b3 {[%clk 0:01:49]}  b6 {[%clk 0:01:52]} 21. Ne2 {[%clk 0:01:48]}  Be6 {[%clk 0:01:44]} 22. d4 {[%clk 0:01:42]}  cxd4 {[%clk 0:01:44]} 23. Nxd4 {[%clk 0:01:43]}  Rhe8 {[%clk 0:01:22]} 24. Rd2 {[%clk 0:01:42]}  Qc5 {[%clk 0:01:10]} 25. Rhd1 {[%clk 0:01:40]}  Bd7 {[%clk 0:01:01]} 26. Be3 {[%clk 0:01:33]}  Qb4 {[%clk 0:00:56]} 27. Qf1 {[%clk 0:01:30]}  c5 {[%clk 0:00:46]} 28. Nf5 {[%clk 0:01:17]}  Bb5 {[%clk 0:00:32]} 29. Rxd8+ {[%clk 0:01:07]}  Rxd8 {[%clk 0:00:31]} 30. Rxd8+ {[%clk 0:01:08]}  Kxd8 {[%clk 0:00:30]} 31. Qd1+ {[%clk 0:01:06]}  Bd7 {[%clk 0:00:19]} 32. Qd6 {[%clk 0:00:47]}  g6 {[%clk 0:00:05]} 33. Qxf6+ {[%clk 0:00:45]}  Kc8 {[%clk 0:00:05]} 34. Nd6+ {[%clk 0:00:38]}  Kc7 {[%clk 0:00:05]} 35. Qxe5 {[%clk 0:00:37]}  Qc3 {[%clk 0:00:06]} 36. Nb5+ {[%clk 0:00:36]} 1-0


[Site "https://www.chess.com"]

[Event "Titled Tuesday Blitz November 15 Late 2022"]
[White "Alexikov, Alexander"]
[Black "Bazzano, Sebastian"]
[WhiteFideId "14103958"]
[BlackFideId "104566"]
[WhiteElo "2222"]
[BlackElo "2265"]
[Result "1/2-1/2"]
[Round "05"]
[TimeControl "180+1"]
[Date "2022.11.16"]
[WhiteClock "0:00:21"]
[BlackClock "0:00:13"]

1. e4 {[%clk 0:03:00]}  e6 {[%clk 0:02:54]} 2. d4 {[%clk 0:02:59]}  d5 {[%clk 0:02:54]} 3. Nc3 {[%clk 0:02:59]}  dxe4 {[%clk 0:02:54]} 4. Nxe4 {[%clk 0:02:58]}  Bd7 {[%clk 0:02:55]} 5. Nf3 {[%clk 0:02:57]}  Bc6 {[%clk 0:02:55]} 6. Bd3 {[%clk 0:02:56]}  Bxe4 {[%clk 0:02:56]} 7. Bxe4 {[%clk 0:02:55]}  c6 {[%clk 0:02:57]} 8. c3 {[%clk 0:02:45]}  Nf6 {[%clk 0:02:56]} 9. Bc2 {[%clk 0:02:45]}  Bd6 {[%clk 0:02:57]} 10. O-O {[%clk 0:02:43]}  Nbd7 {[%clk 0:02:57]} 11. Re1 {[%clk 0:02:43]}  O-O {[%clk 0:02:57]} 12. Bg5 {[%clk 0:02:41]}  Qc7 {[%clk 0:02:57]} 13. Bh4 {[%clk 0:02:39]}  Rfe8 {[%clk 0:02:58]} 14. Bg3 {[%clk 0:02:33]}  Bxg3 {[%clk 0:02:57]} 15. hxg3 {[%clk 0:02:32]}  e5 {[%clk 0:02:57]} 16. dxe5 {[%clk 0:02:29]}  Nxe5 {[%clk 0:02:57]} 17. Nxe5 {[%clk 0:02:27]}  Rxe5 {[%clk 0:02:58]} 18. Rxe5 {[%clk 0:02:26]}  Qxe5 {[%clk 0:02:59]} 19. Qe1 {[%clk 0:02:25]}  Re8 {[%clk 0:02:55]} 20. Qxe5 {[%clk 0:02:24]}  Rxe5 {[%clk 0:02:56]} 21. Kf1 {[%clk 0:02:21]}  Kf8 {[%clk 0:02:55]} 22. Re1 {[%clk 0:02:17]}  Rxe1+ {[%clk 0:02:52]} 23. Kxe1 {[%clk 0:02:17]}  Ke7 {[%clk 0:02:52]} 24. f3 {[%clk 0:02:14]}  h6 {[%clk 0:02:51]} 25. g4 {[%clk 0:02:13]}  Nd5 {[%clk 0:02:50]} 26. Kf2 {[%clk 0:02:12]}  g5 {[%clk 0:02:40]} 27. g3 {[%clk 0:02:10]}  f6 {[%clk 0:02:39]} 28. Bf5 {[%clk 0:02:05]}  Kd6 {[%clk 0:02:37]} 29. Ke2 {[%clk 0:02:04]}  Ke5 {[%clk 0:02:32]} 30. Bc8 {[%clk 0:02:02]}  b6 {[%clk 0:02:32]} 31. Bb7 {[%clk 0:02:00]}  Ne7 {[%clk 0:02:17]} 32. a4 {[%clk 0:01:45]}  f5 {[%clk 0:01:36]} 33. gxf5 {[%clk 0:01:37]}  Kxf5 {[%clk 0:01:37]} 34. g4+ {[%clk 0:00:51]}  Kf4 {[%clk 0:01:26]} 35. Kf2 {[%clk 0:00:51]}  c5 {[%clk 0:00:50]} 36. b4 {[%clk 0:00:50]}  cxb4 {[%clk 0:00:36]} 37. cxb4 {[%clk 0:00:49]}  Ng6 {[%clk 0:00:37]} 38. a5 {[%clk 0:00:44]}  Ne5 {[%clk 0:00:33]} 39. Ke2 {[%clk 0:00:43]}  bxa5 {[%clk 0:00:21]} 40. bxa5 {[%clk 0:00:42]}  Nc4 {[%clk 0:00:21]} 41. a6 {[%clk 0:00:40]}  Ne5 {[%clk 0:00:20]} 42. Bd5 {[%clk 0:00:37]}  Ng6 {[%clk 0:00:17]} 43. Kd3 {[%clk 0:00:35]}  Ne5+ {[%clk 0:00:17]} 44. Ke2 {[%clk 0:00:35]}  Ng6 {[%clk 0:00:16]} 45. Be4 {[%clk 0:00:32]}  Ne5 {[%clk 0:00:16]} 46. Bb7 {[%clk 0:00:31]}  Ng6 {[%clk 0:00:13]} 47. Kd3 {[%clk 0:00:28]}  Ne5+ {[%clk 0:00:13]} 48. Ke2 {[%clk 0:00:23]}  Ng6 {[%clk 0:00:13]} 49. Bc6 {[%clk 0:00:21]}  Ne5 {[%clk 0:00:13]} 50. Bd5 {[%clk 0:00:21]} 1/2-1/2


[Site "https://www.chess.com"]

[Event "Titled Tuesday Blitz November 15 Late 2022"]
[White "Arnold, Ken"]
[Black "Janaszak, Dawid"]
[WhiteFideId "2056836"]
[BlackFideId "1119206"]
[WhiteElo "2345"]
[BlackElo "2226"]
[Result "1-0"]
[Round "05"]
[TimeControl "180+1"]
[Date "2022.11.16"]
[WhiteClock "0:01:16"]
[BlackClock "0:00:46"]

1. d4 {[%clk 0:03:00]}  d5 {[%clk 0:02:58]} 2. c4 {[%clk 0:02:58]}  e6 {[%clk 0:02:58]} 3. cxd5 {[%clk 0:02:59]}  exd5 {[%clk 0:02:59]} 4. Nf3 {[%clk 0:02:59]}  c6 {[%clk 0:02:57]} 5. Nc3 {[%clk 0:02:59]}  Nf6 {[%clk 0:02:57]} 6. Bf4 {[%clk 0:02:58]}  Bd6 {[%clk 0:02:56]} 7. Bg3 {[%clk 0:02:57]}  O-O {[%clk 0:02:56]} 8. e3 {[%clk 0:02:57]}  Ne4 {[%clk 0:02:55]} 9. Bd3 {[%clk 0:02:56]}  f5 {[%clk 0:02:55]} 10. Bxd6 {[%clk 0:02:56]}  Qxd6 {[%clk 0:02:54]} 11. O-O {[%clk 0:02:56]}  Nd7 {[%clk 0:02:53]} 12. Qc2 {[%clk 0:02:52]}  b6 {[%clk 0:02:50]} 13. a3 {[%clk 0:02:52]}  Bb7 {[%clk 0:02:50]} 14. Rfd1 {[%clk 0:02:51]}  Rae8 {[%clk 0:02:49]} 15. Rac1 {[%clk 0:02:50]}  Ndf6 {[%clk 0:02:46]} 16. Ne5 {[%clk 0:02:49]}  Ng4 {[%clk 0:02:45]} 17. Bxe4 {[%clk 0:02:30]}  dxe4 {[%clk 0:02:16]} 18. Nxe4 {[%clk 0:02:08]}  fxe4 {[%clk 0:01:45]} 19. Nxg4 {[%clk 0:02:06]}  Kh8 {[%clk 0:01:40]} 20. b4 {[%clk 0:01:54]}  Rf5 {[%clk 0:01:30]} 21. h3 {[%clk 0:01:48]}  Rg5 {[%clk 0:01:23]} 22. Ne5 {[%clk 0:01:41]}  Qe6 {[%clk 0:01:21]} 23. Qc4 {[%clk 0:01:33]}  Rxe5 {[%clk 0:01:03]} 24. dxe5 {[%clk 0:01:32]}  Qxe5 {[%clk 0:01:04]} 25. Qf7 {[%clk 0:01:26]}  h6 {[%clk 0:00:49]} 26. Qxb7 {[%clk 0:01:21]}  Rf8 {[%clk 0:00:46]} 27. Qxc6 {[%clk 0:01:16]} 1-0


[Site "https://www.chess.com"]

[Event "Titled Tuesday Blitz November 15 Late 2022"]
[White "Bach, Matthias"]
[Black "Papayan, Oleg"]
[WhiteFideId "4603168"]
[BlackFideId "4193911"]
[WhiteElo "2165"]
[BlackElo "2153"]
[Result "1/2-1/2"]
[Round "05"]
[TimeControl "180+1"]
[Date "2022.11.16"]
[WhiteClock "0:00:38"]
[BlackClock "0:00:09"]

1. d4 {[%clk 0:02:55]}  Nf6 {[%clk 0:02:59]} 2. c4 {[%clk 0:02:55]}  e6 {[%clk 0:03:00]} 3. Nc3 {[%clk 0:02:55]}  Bb4 {[%clk 0:03:00]} 4. Bg5 {[%clk 0:02:55]}  h6 {[%clk 0:03:00]} 5. Bh4 {[%clk 0:02:55]}  c5 {[%clk 0:03:00]} 6. d5 {[%clk 0:02:55]}  Bxc3+ {[%clk 0:02:58]} 7. bxc3 {[%clk 0:02:54]}  d6 {[%clk 0:02:58]} 8. e3 {[%clk 0:02:53]}  Qe7 {[%clk 0:02:54]} 9. Bd3 {[%clk 0:02:52]}  e5 {[%clk 0:02:53]} 10. Bc2 {[%clk 0:02:44]}  e4 {[%clk 0:02:39]} 11. Bxf6 {[%clk 0:02:31]}  Qxf6 {[%clk 0:02:34]} 12. Ne2 {[%clk 0:02:31]}  Bf5 {[%clk 0:02:24]} 13. O-O {[%clk 0:02:28]}  O-O {[%clk 0:02:24]} 14. Ng3 {[%clk 0:02:19]}  Re8 {[%clk 0:02:24]} 15. Qb1 {[%clk 0:02:15]}  Nd7 {[%clk 0:02:08]} 16. f3 {[%clk 0:02:13]}  Bg6 {[%clk 0:01:51]} 17. Bxe4 {[%clk 0:02:07]}  Qxc3 {[%clk 0:01:46]} 18. Bxg6 {[%clk 0:02:00]}  Qxe3+ {[%clk 0:01:46]} 19. Kh1 {[%clk 0:01:59]}  fxg6 {[%clk 0:01:47]} 20. Qxg6 {[%clk 0:01:58]}  Qg5 {[%clk 0:01:15]} 21. Qxd6 {[%clk 0:01:53]}  Nb6 {[%clk 0:01:10]} 22. Ne4 {[%clk 0:01:46]}  Qe5 {[%clk 0:01:10]} 23. Qxe5 {[%clk 0:01:37]}  Rxe5 {[%clk 0:01:11]} 24. Rac1 {[%clk 0:01:37]}  Nd7 {[%clk 0:01:10]} 25. Kg1 {[%clk 0:01:35]}  a6 {[%clk 0:01:08]} 26. a4 {[%clk 0:01:33]}  b5 {[%clk 0:01:04]} 27. axb5 {[%clk 0:01:27]}  axb5 {[%clk 0:01:05]} 28. cxb5 {[%clk 0:01:26]}  Rxd5 {[%clk 0:01:05]} 29. Rfd1 {[%clk 0:01:26]}  Rd4 {[%clk 0:00:56]} 30. Rxd4 {[%clk 0:01:08]}  cxd4 {[%clk 0:00:57]} 31. Rc4 {[%clk 0:01:08]}  d3 {[%clk 0:00:30]} 32. Rd4 {[%clk 0:01:07]}  Ne5 {[%clk 0:00:27]} 33. h3 {[%clk 0:00:59]}  Ra1+ {[%clk 0:00:21]} 34. Kf2 {[%clk 0:00:53]}  Rb1 {[%clk 0:00:22]} 35. Nd6 {[%clk 0:00:48]}  Rb2+ {[%clk 0:00:21]} 36. Kg3 {[%clk 0:00:48]}  d2 {[%clk 0:00:21]} 37. Ne4 {[%clk 0:00:43]}  Nc4 {[%clk 0:00:21]} 38. b6 {[%clk 0:00:39]}  Kf7 {[%clk 0:00:11]} 39. b7 {[%clk 0:00:38]}  Rxb7 {[%clk 0:00:08]} 40. Nxd2 {[%clk 0:00:38]}  Nxd2 {[%clk 0:00:08]} 41. Rxd2 {[%clk 0:00:38]}  Rb4 {[%clk 0:00:08]} 42. Re2 {[%clk 0:00:37]}  Kf6 {[%clk 0:00:08]} 43. Re4 {[%clk 0:00:38]}  Rb3 {[%clk 0:00:08]} 44. h4 {[%clk 0:00:38]}  Rb2 {[%clk 0:00:08]} 45. h5 {[%clk 0:00:37]}  Rb5 {[%clk 0:00:09]} 46. Kg4 {[%clk 0:00:36]}  Rg5+ {[%clk 0:00:08]} 47. Kh3 {[%clk 0:00:33]}  Rxh5+ {[%clk 0:00:08]} 48. Rh4 {[%clk 0:00:33]}  Rg5 {[%clk 0:00:08]} 49. Rg4 {[%clk 0:00:33]}  Rh5+ {[%clk 0:00:07]} 50. Rh4 {[%clk 0:00:34]}  Ra5 {[%clk 0:00:08]} 51. Rg4 {[%clk 0:00:34]}  g5 {[%clk 0:00:08]} 52. Re4 {[%clk 0:00:34]}  Ra1 {[%clk 0:00:08]} 53. Kg3 {[%clk 0:00:34]}  Rh1 {[%clk 0:00:08]} 54. Rb4 {[%clk 0:00:32]}  Rc1 {[%clk 0:00:08]} 55. Rb6+ {[%clk 0:00:32]}  Kg7 {[%clk 0:00:08]} 56. Kh2 {[%clk 0:00:31]}  Rc4 {[%clk 0:00:08]} 57. Kh3 {[%clk 0:00:31]}  Rh4+ {[%clk 0:00:08]} 58. Kg3 {[%clk 0:00:31]}  Rc4 {[%clk 0:00:09]} 59. Kh3 {[%clk 0:00:32]}  h5 {[%clk 0:00:09]} 60. Kg3 {[%clk 0:00:32]}  Rh4 {[%clk 0:00:09]} 61. Kf2 {[%clk 0:00:32]}  Ra4 {[%clk 0:00:09]} 62. Kg3 {[%clk 0:00:32]}  Rc4 {[%clk 0:00:07]} 63. Kh3 {[%clk 0:00:33]}  Rc1 {[%clk 0:00:07]} 64. Kg3 {[%clk 0:00:33]}  Rc4 {[%clk 0:00:07]} 65. Kf2 {[%clk 0:00:33]}  Rf4 {[%clk 0:00:07]} 66. Kg3 {[%clk 0:00:33]}  Rf5 {[%clk 0:00:07]} 67. Kh3 {[%clk 0:00:33]}  Re5 {[%clk 0:00:07]} 68. Kg3 {[%clk 0:00:33]}  Rc5 {[%clk 0:00:07]} 69. Kf2 {[%clk 0:00:33]}  Rc4 {[%clk 0:00:07]} 70. Kg3 {[%clk 0:00:34]}  h4+ {[%clk 0:00:06]} 71. Kh3 {[%clk 0:00:34]}  Rd4 {[%clk 0:00:07]} 72. Kh2 {[%clk 0:00:34]}  Rd2 {[%clk 0:00:06]} 73. Kh3 {[%clk 0:00:34]}  Rd4 {[%clk 0:00:07]} 74. Kh2 {[%clk 0:00:35]}  Rf4 {[%clk 0:00:07]} 75. Kh3 {[%clk 0:00:35]}  Rc4 {[%clk 0:00:07]} 76. Kh2 {[%clk 0:00:35]}  Ra4 {[%clk 0:00:08]} 77. Kh3 {[%clk 0:00:36]}  Kh7 {[%clk 0:00:08]} 78. Kh2 {[%clk 0:00:36]}  Rf4 {[%clk 0:00:08]} 79. Kh3 {[%clk 0:00:36]}  Rc4 {[%clk 0:00:09]} 80. Kh2 {[%clk 0:00:37]}  g4 {[%clk 0:00:08]} 81. fxg4 {[%clk 0:00:37]}  Rxg4 {[%clk 0:00:09]} 82. Kh3 {[%clk 0:00:37]}  Rg3+ {[%clk 0:00:10]} 83. Kxh4 {[%clk 0:00:37]}  Rxg2 {[%clk 0:00:10]} 84. Rb7+ {[%clk 0:00:37]}  Kg6 {[%clk 0:00:09]} 85. Rb6+ {[%clk 0:00:37]}  Kg7 {[%clk 0:00:09]} 86. Rb5 {[%clk 0:00:37]}  Kh8 {[%clk 0:00:09]} 87. Rh5+ {[%clk 0:00:37]}  Kg8 {[%clk 0:00:09]} 88. Rg5+ {[%clk 0:00:37]}  Rxg5 {[%clk 0:00:09]} 89. Kxg5 {[%clk 0:00:38]} 1/2-1/2


[Site "https://www.chess.com"]

[Event "Titled Tuesday Blitz November 15 Late 2022"]
[White "Badelka, Olga"]
[Black "Paiva, Henrique M A Albergaria"]
[WhiteFideId "13509926"]
[BlackFideId "1920995"]
[WhiteElo "2337"]
[BlackElo "1953"]
[Result "1-0"]
[Round "05"]
[TimeControl "180+1"]
[Date "2022.11.16"]
[WhiteClock "0:00:02"]
[BlackClock "0:00:11"]

1. d4 {[%clk 0:02:59]}  d5 {[%clk 0:02:56]} 2. c4 {[%clk 0:02:58]}  c6 {[%clk 0:02:57]} 3. Nf3 {[%clk 0:02:57]}  Nf6 {[%clk 0:02:57]} 4. e3 {[%clk 0:02:56]}  Bg4 {[%clk 0:02:55]} 5. Nc3 {[%clk 0:02:56]}  e6 {[%clk 0:02:55]} 6. h3 {[%clk 0:02:56]}  Bh5 {[%clk 0:02:53]} 7. g4 {[%clk 0:02:56]}  Bg6 {[%clk 0:02:53]} 8. Ne5 {[%clk 0:02:57]}  Nbd7 {[%clk 0:02:51]} 9. Nxg6 {[%clk 0:02:57]}  hxg6 {[%clk 0:02:51]} 10. Bg2 {[%clk 0:02:32]}  Bd6 {[%clk 0:02:48]} 11. c5 {[%clk 0:02:21]}  Bc7 {[%clk 0:02:47]} 12. f4 {[%clk 0:02:21]}  b6 {[%clk 0:02:43]} 13. b4 {[%clk 0:02:04]}  a5 {[%clk 0:02:35]} 14. b5 {[%clk 0:02:04]}  bxc5 {[%clk 0:02:34]} 15. bxc6 {[%clk 0:02:04]}  Nb6 {[%clk 0:02:24]} 16. dxc5 {[%clk 0:02:00]}  Nc4 {[%clk 0:02:24]} 17. O-O {[%clk 0:01:43]}  Qe7 {[%clk 0:02:15]} 18. g5 {[%clk 0:01:30]}  Qxc5 {[%clk 0:01:32]} 19. gxf6 {[%clk 0:01:07]}  Nxe3 {[%clk 0:01:32]} 20. Na4 {[%clk 0:01:07]}  Qa7 {[%clk 0:01:28]} 21. Bxe3 {[%clk 0:01:03]}  Qxe3+ {[%clk 0:01:28]} 22. Rf2 {[%clk 0:01:03]}  gxf6 {[%clk 0:01:20]} 23. Qb3 {[%clk 0:00:55]}  Qa7 {[%clk 0:01:00]} 24. Qb7 {[%clk 0:00:50]}  O-O {[%clk 0:00:57]} 25. Qxa7 {[%clk 0:00:50]}  Rxa7 {[%clk 0:00:57]} 26. Rb1 {[%clk 0:00:50]}  Rc8 {[%clk 0:00:54]} 27. Rb7 {[%clk 0:00:25]}  Ra6 {[%clk 0:00:54]} 28. f5 {[%clk 0:00:18]}  gxf5 {[%clk 0:00:45]} 29. Rc2 {[%clk 0:00:16]}  Kf8 {[%clk 0:00:40]} 30. Bf1 {[%clk 0:00:14]}  Raa8 {[%clk 0:00:37]} 31. Bb5 {[%clk 0:00:14]}  e5 {[%clk 0:00:33]} 32. Nc5 {[%clk 0:00:14]}  d4 {[%clk 0:00:31]} 33. Nd7+ {[%clk 0:00:14]}  Kg7 {[%clk 0:00:31]} 34. Nb6 {[%clk 0:00:13]}  Bxb6 {[%clk 0:00:31]} 35. Rxb6 {[%clk 0:00:14]}  e4 {[%clk 0:00:30]} 36. c7 {[%clk 0:00:13]}  d3 {[%clk 0:00:30]} 37. Rc5 {[%clk 0:00:13]}  Ra7 {[%clk 0:00:30]} 38. Rbc6 {[%clk 0:00:09]}  d2 {[%clk 0:00:29]} 39. Be2 {[%clk 0:00:08]}  e3 {[%clk 0:00:29]} 40. Kf1 {[%clk 0:00:07]}  Kg6 {[%clk 0:00:28]} 41. h4 {[%clk 0:00:07]}  Rb7 {[%clk 0:00:26]} 42. h5+ {[%clk 0:00:07]}  Kg5 {[%clk 0:00:25]} 43. Kg2 {[%clk 0:00:05]}  Rb1 {[%clk 0:00:25]} 44. Rd5 {[%clk 0:00:04]}  Re1 {[%clk 0:00:24]} 45. Kf3 {[%clk 0:00:04]}  Rc1 {[%clk 0:00:20]} 46. Rdd6 {[%clk 0:00:03]}  Rxc7 {[%clk 0:00:18]} 47. Rxc7 {[%clk 0:00:03]}  Rxc7 {[%clk 0:00:18]} 48. Kxe3 {[%clk 0:00:04]}  d1=Q {[%clk 0:00:17]} 49. Rxd1 {[%clk 0:00:04]}  Re7+ {[%clk 0:00:18]} 50. Kf2 {[%clk 0:00:04]}  Re4 {[%clk 0:00:18]} 51. Rd3 {[%clk 0:00:03]}  Rf4+ {[%clk 0:00:18]} 52. Rf3 {[%clk 0:00:03]}  Rh4 {[%clk 0:00:18]} 53. Rg3+ {[%clk 0:00:03]}  Kf4 {[%clk 0:00:18]} 54. Rg7 {[%clk 0:00:03]}  Rh2+ {[%clk 0:00:18]} 55. Rg2 {[%clk 0:00:03]}  Rh4 {[%clk 0:00:18]} 56. Rg7 {[%clk 0:00:03]}  Rh2+ {[%clk 0:00:18]} 57. Ke1 {[%clk 0:00:03]}  Ke3 {[%clk 0:00:17]} 58. Rg3+ {[%clk 0:00:04]}  Kf4 {[%clk 0:00:16]} 59. Ra3 {[%clk 0:00:04]}  Kg5 {[%clk 0:00:14]} 60. Rxa5 {[%clk 0:00:04]}  Rh1+ {[%clk 0:00:14]} 61. Kd2 {[%clk 0:00:03]}  Rh2 {[%clk 0:00:14]} 62. Rd5 {[%clk 0:00:03]}  Rh1 {[%clk 0:00:14]} 63. a4 {[%clk 0:00:03]}  Ra1 {[%clk 0:00:15]} 64. a5 {[%clk 0:00:03]}  Kf4 {[%clk 0:00:14]} 65. a6 {[%clk 0:00:03]}  Ra2+ {[%clk 0:00:14]} 66. Ke1 {[%clk 0:00:02]}  Ke3 {[%clk 0:00:14]} 67. Bc4 {[%clk 0:00:02]}  Ra1+ {[%clk 0:00:14]} 68. Rd1 {[%clk 0:00:02]}  Ra4 {[%clk 0:00:13]} 69. Rd3+ {[%clk 0:00:02]}  Ke4 {[%clk 0:00:13]} 70. Rc3 {[%clk 0:00:02]}  Kd4 {[%clk 0:00:13]} 71. Rc2 {[%clk 0:00:03]}  f4 {[%clk 0:00:11]} 72. h6 {[%clk 0:00:02]}  f3 {[%clk 0:00:11]} 73. Kf2 {[%clk 0:00:02]}  Rxc4 {[%clk 0:00:11]} 74. Rxc4+ {[%clk 0:00:02]}  Kxc4 {[%clk 0:00:11]} 75. a7 {[%clk 0:00:02]} 1-0


[Site "https://www.chess.com"]

[Event "Titled Tuesday Blitz November 15 Late 2022"]
[White "Besedes, Danilo"]
[Black "Allahverdiyeva, Ayan"]
[WhiteFideId "946796"]
[BlackFideId "13412590"]
[WhiteElo "2352"]
[BlackElo "2021"]
[Result "1/2-1/2"]
[Round "05"]
[TimeControl "180+1"]
[Date "2022.11.16"]
[WhiteClock "0:00:34"]
[BlackClock "0:00:05"]

1. e4 {[%clk 0:03:00]}  c5 {[%clk 0:02:59]} 2. d4 {[%clk 0:02:56]}  cxd4 {[%clk 0:02:58]} 3. c3 {[%clk 0:02:56]}  dxc3 {[%clk 0:02:58]} 4. Nxc3 {[%clk 0:02:56]}  d6 {[%clk 0:02:53]} 5. Nf3 {[%clk 0:02:56]}  Nc6 {[%clk 0:02:40]} 6. Bc4 {[%clk 0:02:55]}  a6 {[%clk 0:02:40]} 7. O-O {[%clk 0:02:53]}  Nf6 {[%clk 0:02:36]} 8. h3 {[%clk 0:02:53]}  e6 {[%clk 0:02:31]} 9. Qe2 {[%clk 0:02:51]}  Be7 {[%clk 0:02:31]} 10. Rd1 {[%clk 0:02:51]}  Qc7 {[%clk 0:02:28]} 11. Bf4 {[%clk 0:02:51]}  O-O {[%clk 0:02:24]} 12. Rac1 {[%clk 0:02:50]}  Qb8 {[%clk 0:01:59]} 13. Bb3 {[%clk 0:02:50]}  Na5 {[%clk 0:01:46]} 14. Bc2 {[%clk 0:02:50]}  e5 {[%clk 0:01:46]} 15. Bg5 {[%clk 0:02:48]}  Be6 {[%clk 0:01:44]} 16. Bxf6 {[%clk 0:02:30]}  Bxf6 {[%clk 0:01:43]} 17. Nd5 {[%clk 0:02:30]}  Bd8 {[%clk 0:01:29]} 18. Bb1 {[%clk 0:02:16]}  b5 {[%clk 0:01:16]} 19. b3 {[%clk 0:02:06]}  Ra7 {[%clk 0:01:12]} 20. Qd2 {[%clk 0:01:55]}  Rd7 {[%clk 0:00:59]} 21. Rc3 {[%clk 0:01:48]}  Nb7 {[%clk 0:00:58]} 22. b4 {[%clk 0:01:47]}  a5 {[%clk 0:00:58]} 23. a3 {[%clk 0:01:46]}  axb4 {[%clk 0:00:51]} 24. axb4 {[%clk 0:01:47]}  Qa7 {[%clk 0:00:33]} 25. Bd3 {[%clk 0:01:43]}  Bb6 {[%clk 0:00:31]} 26. Bxb5 {[%clk 0:01:42]}  Bxd5 {[%clk 0:00:28]} 27. Bxd7 {[%clk 0:01:41]}  Bxe4 {[%clk 0:00:27]} 28. Bc6 {[%clk 0:01:39]}  Bxf3 {[%clk 0:00:25]} 29. Bxf3 {[%clk 0:01:38]}  Bd4 {[%clk 0:00:25]} 30. Rc2 {[%clk 0:01:32]}  Qb6 {[%clk 0:00:24]} 31. Rb1 {[%clk 0:01:31]}  Nd8 {[%clk 0:00:24]} 32. Bd5 {[%clk 0:01:29]}  Ne6 {[%clk 0:00:24]} 33. g3 {[%clk 0:01:25]}  Kh8 {[%clk 0:00:19]} 34. Qd3 {[%clk 0:01:23]}  Ng5 {[%clk 0:00:17]} 35. Kg2 {[%clk 0:01:24]}  f5 {[%clk 0:00:17]} 36. h4 {[%clk 0:01:24]}  e4 {[%clk 0:00:17]} 37. Qc4 {[%clk 0:01:18]}  Nf3 {[%clk 0:00:17]} 38. Qc6 {[%clk 0:01:18]}  Qb8 {[%clk 0:00:16]} 39. b5 {[%clk 0:01:16]}  Qd8 {[%clk 0:00:16]} 40. Bxe4 {[%clk 0:01:10]}  fxe4 {[%clk 0:00:16]} 41. Qxe4 {[%clk 0:01:11]}  Bb6 {[%clk 0:00:08]} 42. Rd1 {[%clk 0:01:06]}  Ne5 {[%clk 0:00:08]} 43. f4 {[%clk 0:01:06]}  Ng4 {[%clk 0:00:08]} 44. Re2 {[%clk 0:01:06]}  Nf6 {[%clk 0:00:07]} 45. Qe7 {[%clk 0:01:05]}  d5 {[%clk 0:00:07]} 46. Qxd8 {[%clk 0:01:05]}  Rxd8 {[%clk 0:00:08]} 47. Re6 {[%clk 0:01:05]}  h6 {[%clk 0:00:08]} 48. Rxb6 {[%clk 0:01:05]}  d4 {[%clk 0:00:09]} 49. Kf3 {[%clk 0:01:05]}  d3 {[%clk 0:00:03]} 50. Rxf6 {[%clk 0:01:02]}  gxf6 {[%clk 0:00:01]} 51. Ke4 {[%clk 0:01:03]}  Rb8 {[%clk 0:00:01]} 52. Kf5 {[%clk 0:00:57]}  Rxb5+ {[%clk 0:00:02]} 53. Kxf6 {[%clk 0:00:56]}  Rd5 {[%clk 0:00:02]} 54. Kg6 {[%clk 0:00:55]}  d2 {[%clk 0:00:02]} 55. Kxh6 {[%clk 0:00:55]}  Rd3 {[%clk 0:00:02]} 56. g4 {[%clk 0:00:55]}  Rd6+ {[%clk 0:00:02]} 57. Kg5 {[%clk 0:00:55]}  Kg7 {[%clk 0:00:03]} 58. f5 {[%clk 0:00:56]}  Rd4 {[%clk 0:00:03]} 59. h5 {[%clk 0:00:55]}  Kf7 {[%clk 0:00:03]} 60. h6 {[%clk 0:00:56]}  Rd8 {[%clk 0:00:02]} 61. Kh5 {[%clk 0:00:55]}  Kf6 {[%clk 0:00:03]} 62. g5+ {[%clk 0:00:43]}  Kxf5 {[%clk 0:00:02]} 63. h7 {[%clk 0:00:43]}  Rd3 {[%clk 0:00:01]} 64. Rf1+ {[%clk 0:00:42]}  Ke6 {[%clk 0:00:01]} 65. h8=Q {[%clk 0:00:43]}  Rh3+ {[%clk 0:00:01]} 66. Kg6 {[%clk 0:00:38]}  Rxh8 {[%clk 0:00:02]} 67. Rd1 {[%clk 0:00:39]}  Rd8 {[%clk 0:00:03]} 68. Kg7 {[%clk 0:00:37]}  Kf5 {[%clk 0:00:03]} 69. g6 {[%clk 0:00:34]}  Rd7+ {[%clk 0:00:03]} 70. Kh6 {[%clk 0:00:32]}  Rd6 {[%clk 0:00:04]} 71. Rf1+ {[%clk 0:00:32]}  Ke4 {[%clk 0:00:03]} 72. Kh7 {[%clk 0:00:31]}  d1=Q {[%clk 0:00:03]} 73. Rxd1 {[%clk 0:00:31]}  Rxd1 {[%clk 0:00:04]} 74. g7 {[%clk 0:00:32]}  Rg1 {[%clk 0:00:04]} 75. g8=Q {[%clk 0:00:33]}  Rxg8 {[%clk 0:00:05]} 76. Kxg8 {[%clk 0:00:34]} 1/2-1/2


[Site "https://www.chess.com"]